[Event "56th Biel Festival MTO 2023"]
[White "Schnepp,Gunnar"]
[Black "Erdos,Viktor"]
[Site "Biel"]
[Round "5.20"]
[Annotator "RC"]
[Result "1/2-1/2"]
[Date "2023.07.21"]
[WhiteElo "2278"]
[BlackElo "2571"]
[PlyCount "147"]
[TimeControl "60"]

1. d4 {[%emt 0:0:0]} Nf6 {[%emt 0:0:0]} 2. c4 {[%emt 0:0:0]} c5 {[%emt 0:0:0]} 3. d5 {[%emt 0:0:0]} g6 {[%emt 0:0:0]} 4. Nc3 {[%emt 0:0:0]} Bg7 {[%emt 0:0:0]} 5. e4 {[%emt 0:4:26]} d6 {[%emt 0:0:0]} 6. h3 {[%emt 0:7:2]} O-O {[%emt 0:0:0]} 7. Nf3 {[%emt 0:1:3]} e6 {[%emt 0:0:0]} 8. Bd3 {[%emt 0:1:11]} Na6 {[%emt 0:0:8]} 9. O-O {[%emt 0:0:50]} Nc7 {[%emt 0:0:13]} 10. Bg5 {[%emt 0:16:3]} h6 {[%emt 0:1:39]} 11. Be3 {[%emt 0:2:44]} exd5 {[%emt 0:3:13]} 12. exd5 {[%emt 0:28:12]} b5 {[%emt 0:1:53]} 13. b3 {[%emt 0:3:6]} b4 {[%emt 0:13:48]} 14. Ne2 {[%emt 0:3:9]} Nh5 {[%emt 0:0:54]} 15. Rb1 {[%emt 0:8:5]} f5 {[%emt 0:2:16]} 16. Nf4 {[%emt 0:0:44]} Nxf4 {[%emt 0:0:40]} 17. Bxf4 {[%emt 0:0:2]} Ne8 {[%emt 0:7:59]} 18. Bc1 {[%emt 0:0:51]} a5 {[%emt 0:1:31]} 19. Bb2 {[%emt 0:1:47]} Ra7 {[%emt 0:0:33]} 20. Nh2 {[%emt 0:5:45]} Nf6 {[%emt 0:4:36]} 21. Qd2 {[%emt 0:6:41]} Nh5 {[%emt 0:18:48]} 22. Bxg7 {[%emt 0:0:53]} Kxg7 {[%emt 0:0:6]} 23. a3 {[%emt 0:3:14]} Qg5 {[%emt 0:9:37]} 24. Qxg5 {[%emt 0:1:16]} hxg5 {[%emt 0:0:2]} 25. Rfe1 {[%emt 0:0:50]} Nf4 {[%emt 0:6:3]} 26. Bf1 {[%emt 0:0:8]} g4 {[%emt 0:0:24]} 27. axb4 {[%emt 0:1:43]} axb4 {[%emt 0:0:9]} 28. Ra1 {[%emt 0:0:5]} Rff7 {[%emt 0:9:8]} 29. hxg4 {[%emt 0:1:9]} fxg4 {[%emt 0:0:14]} 30. g3 {[%emt 0:0:30]} Nh3+ {[%emt 0:4:5]} 31. Bxh3 {[%emt 0:0:4]} gxh3 {[%emt 0:0:2]} 32. g4 {[%emt 0:0:27]} Rfb7 {[%emt 0:13:17]} 33. f3 {[%emt 0:2:36]} Ra3 {[%emt 0:0:11]} 34. Rab1 {[%emt 0:0:25]} Ra2 {[%emt 0:0:9]} 35. Re3 {[%emt 0:1:0]} Kf6 {[%emt 0:4:37]} 36. Rbe1 {[%emt 0:0:54]} Rba7 {[%emt 0:1:22]} 37. R1e2 {[%emt 0:0:56]} Rxe2 {[%emt 0:0:43]} 38. Rxe2 {[%emt 0:0:2]} Ra3 {[%emt 0:0:11]} 39. Re3 {[%emt 0:0:26]} Ra2 {[%emt 0:0:7]} 40. f4 {[%emt 0:1:29]} Rg2+ {[%emt 0:0:25]} 41. Kh1 {[%emt 0:30:14]} Bxg4 {[%emt 0:0:0]} 42. Nxg4+ {[%emt 0:0:0]} Rxg4 {[%emt 0:0:0]} 43. Re6+ {[%emt 0:0:0]} Kf5 {[%emt 0:0:0]} 44. Rxd6 {[%emt 0:0:0]} Rxf4 {[%emt 0:22:35]} 45. Rc6 {[%emt 0:0:0]} g5 {[%emt 0:1:22]} 46. Rxc5 {[%emt 0:0:0]} g4 {[%emt 0:0:13]} 47. d6+ {[%emt 0:0:0]} Ke6 {[%emt 0:0:11]} 48. Rd5 {[%emt 0:0:0]} g3 {[%emt 0:5:21]} 49. Rd1 {[%emt 0:0:0]} Kd7 {[%emt 0:0:55]} 50. c5 {[%emt 0:0:0]} Rf7 {[%emt 0:1:6]} 51. Kg1 {[%emt 0:0:0]} Kc6 {[%emt 0:0:10]} 52. Kh1 {[%emt 0:0:0]} Rf8 {[%emt 0:0:46]} 53. Rc1 {[%emt 0:0:0]} Ra8 {[%emt 0:3:9]} 54. Kg1 {[%emt 0:0:0]} Re8 {[%emt 0:0:7]} 55. Kh1 {[%emt 0:0:0]} Rf8 {[%emt 0:0:10]} 56. Kg1 {[%emt 0:0:0]} Ra8 {[%emt 0:2:32]} 57. Kh1 {[%emt 0:0:0]} Rf8 {[%emt 0:0:2]} 58. Kg1 {[%emt 0:0:0]} g2 {[%emt 0:0:41]} 59. Rd1 {[%emt 0:0:0]} Kxc5 {[%emt 0:0:52]} 60. d7 {[%emt 0:0:0]} Rd8 {[%emt 0:0:12]} 61. Rd3 {[%emt 0:0:36]} Kc6 {[%emt 0:0:28]} 62. Rxh3 {[%emt 0:0:17]} Rxd7 {[%emt 0:0:5]} 63. Kxg2 {[%emt 0:1:28]} Kc5 {[%emt 0:1:19]} 64. Kf2 {[%emt 0:0:48]} Kd4 {[%emt 0:0:23]} 65. Ke2 {[%emt 0:0:34]} Rg7 {[%emt 0:0:5]} 66. Kd2 {[%emt 0:0:57]} Rg2+ {[%emt 0:0:4]} 67. Kc1 {[%emt 0:0:27]} Re2 {[%emt 0:0:8]} 68. Rh4+ {[%emt 0:7:31]} Re4 {[%emt 0:0:30]} 69. Rh2 {[%emt 0:0:45]} Kd3 {[%emt 0:0:14]} 70. Rh8 {[%emt 0:0:0]} Re2 {[%emt 0:0:0]} 71. Rc8 {[%emt 0:0:0]} Re1+ {[%emt 0:0:0]} 72. Kb2 {[%emt 0:0:0]} Re2+ {[%emt 0:0:0]} 73. Kb1 {[%emt 0:0:0]} Re1+ {[%emt 0:0:0]} 74. Kb2 {[%emt 0:0:0]} 1/2-1/2

[Event "56th Biel Festival MTO 2023"]
[White "Meshkovs,Nikita"]
[Black "Karthik Rajaa"]
[Site "Biel"]
[Round "5.21"]
[Annotator "RC"]
[Result "1-0"]
[Date "2023.07.21"]
[WhiteElo "2565"]
[BlackElo "2276"]
[PlyCount "57"]
[TimeControl "60"]

1. d4 {[%emt 0:0:0]} Nf6 {[%emt 0:0:0]} 2. Bg5 {[%emt 0:0:0]} g6 {[%emt 0:0:0]} 3. Nd2 {[%emt 0:0:0]} d5 {[%emt 0:4:24]} 4. e3 {[%emt 0:0:0]} Bg7 {[%emt 0:0:50]} 5. Bd3 {[%emt 0:0:0]} c5 {[%emt 0:2:35]} 6. c3 {[%emt 0:0:0]} Qb6 {[%emt 0:4:9]} 7. Rb1 {[%emt 0:1:15]} Bd7 {[%emt 0:1:29]} 8. Ngf3 {[%emt 0:2:50]} Bb5 {[%emt 0:8:50]} 9. Bxb5+ {[%emt 0:11:51]} Qxb5 {[%emt 0:0:15]} 10. a4 {[%emt 0:0:28]} Qb6 {[%emt 0:3:25]} 11. O-O {[%emt 0:5:38]} Nbd7 {[%emt 0:2:54]} 12. Qe2 {[%emt 0:15:21]} O-O {[%emt 0:6:38]} 13. Rfd1 {[%emt 0:2:1]} Rfe8 {[%emt 0:8:53]} 14. h3 {[%emt 0:1:4]} Qc6 {[%emt 0:2:12]} 15. Ra1 {[%emt 0:4:55]} Rac8 {[%emt 0:11:27]} 16. Bf4 {[%emt 0:2:57]} Qb6 {[%emt 0:13:39]} 17. Qb5 {[%emt 0:4:55]} Qc6 {[%emt 0:7:1]} 18. Nb3 {[%emt 0:8:15]} a6 {[%emt 0:7:5]} 19. Bg3 {[%emt 0:4:42]} Ne5 {[%emt 0:2:37]} 20. Bf4 {[%emt 0:1:15]} Nfd7 {[%emt 0:0:39]} 21. Bg3 {[%emt 0:1:6]} Red8 {[%emt 0:8:2]} 22. Bh4 {[%emt 0:26:50]} Bh6 {[%emt 0:2:0]} 23. Bf6 {[%emt 0:1:20]} Bf4 {[%emt 0:1:17]} 24. Kf1 {[%emt 0:3:14]} Kf8 {[%emt 0:0:0]} 25. Bxe5 {[%emt 0:1:40]} Ke8 {[%emt 0:0:0]} 26. h4 {[%emt 0:0:0]} f6 {[%emt 0:0:0]} 27. g3 {[%emt 0:0:0]} h5 {[%emt 0:0:0]} 28. g4 {[%emt 0:0:0]} g5 {[%emt 0:0:0]} 29. gxh5 {[%emt 0:0:0]} 1-0

[Event "56th Biel Festival MTO 2023"]
[White "Sanchez Alvarez,Roberto Carlos"]
[Black "Urh,Zala"]
[Site "Biel"]
[Round "5.22"]
[Annotator "RC"]
[Result "1-0"]
[Date "2023.07.21"]
[WhiteElo "2444"]
[BlackElo "2231"]
[PlyCount "81"]
[TimeControl "60"]

1. Nf3 {[%emt 0:0:0]} Nf6 {[%emt 0:0:0]} 2. g3 {[%emt 0:0:0]} d5 {[%emt 0:0:0]} 3. Bg2 {[%emt 0:0:0]} c5 {[%emt 0:0:0]} 4. O-O {[%emt 0:0:0]} Nc6 {[%emt 0:0:0]} 5. d4 {[%emt 0:0:10]} e6 {[%emt 0:0:0]} 6. c4 {[%emt 0:0:13]} dxc4 {[%emt 0:0:0]} 7. Qa4 {[%emt 0:0:59]} cxd4 {[%emt 0:7:23]} 8. Nxd4 {[%emt 0:4:18]} Qxd4 {[%emt 0:7:47]} 9. Bxc6+ {[%emt 0:0:20]} Bd7 {[%emt 0:0:5]} 10. Rd1 {[%emt 0:0:58]} Bxc6 {[%emt 0:0:23]} 11. Qxc6+ {[%emt 0:0:12]} bxc6 {[%emt 0:0:4]} 12. Rxd4 {[%emt 0:0:10]} Rd8 {[%emt 0:3:5]} 13. Rxc4 {[%emt 0:1:0]} Rd1+ {[%emt 0:12:39]} 14. Kg2 {[%emt 0:1:1]} Kd7 {[%emt 0:1:11]} 15. Nc3 {[%emt 0:2:16]} Re1 {[%emt 0:0:48]} 16. Rb1 {[%emt 0:24:21]} Nd5 {[%emt 0:4:55]} 17. Bd2 {[%emt 0:0:23]} Rxb1 {[%emt 0:0:35]} 18. Nxb1 {[%emt 0:0:3]} Be7 {[%emt 0:2:53]} 19. e4 {[%emt 0:0:24]} Nb6 {[%emt 0:0:59]} 20. Rc2 {[%emt 0:0:9]} h5 {[%emt 0:7:40]} 21. h4 {[%emt 0:3:10]} Rg8 {[%emt 0:2:50]} 22. Be3 {[%emt 0:4:37]} g5 {[%emt 0:8:39]} 23. hxg5 {[%emt 0:1:29]} Bxg5 {[%emt 0:0:7]} 24. Bxg5 {[%emt 0:2:57]} Rxg5 {[%emt 0:0:7]} 25. f4 {[%emt 0:0:11]} Rb5 {[%emt 0:6:56]} 26. Kh3 {[%emt 0:6:6]} e5 {[%emt 0:14:15]} 27. Nc3 {[%emt 0:22:22]} Rb4 {[%emt 0:2:51]} 28. f5 {[%emt 0:0:36]} Nc4 {[%emt 0:2:49]} 29. Kh4 {[%emt 0:0:13]} Nd6 {[%emt 0:2:32]} 30. Kxh5 {[%emt 0:0:19]} Nxe4 {[%emt 0:0:9]} 31. Nxe4 {[%emt 0:0:10]} Rxe4 {[%emt 0:0:3]} 32. Kg5 {[%emt 0:0:49]} Re1 {[%emt 0:7:14]} 33. Kf6 {[%emt 0:1:2]} e4 {[%emt 0:4:33]} 34. Kxf7 {[%emt 0:1:48]} e3 {[%emt 0:0:48]} 35. Rg2 {[%emt 0:7:49]} Kd6 {[%emt 0:0:32]} 36. g4 {[%emt 0:4:0]} Ke5 {[%emt 0:0:55]} 37. g5 {[%emt 0:3:12]} Kxf5 {[%emt 0:2:21]} 38. g6 {[%emt 0:0:13]} Rd1 {[%emt 0:0:12]} 39. g7 {[%emt 0:0:9]} Rd7+ {[%emt 0:0:12]} 40. Ke8 {[%emt 0:0:28]} e2 {[%emt 0:0:34]} 41. Rf2+ {[%emt 0:30:49]} 1-0

[Event "56th Biel Festival MTO 2023"]
[White "Asllani,Dorian"]
[Black "Weishaeutel,Moritz"]
[Site "Biel"]
[Round "5.23"]
[Annotator "RC"]
[Result "0-1"]
[Date "2023.07.21"]
[WhiteElo "2272"]
[BlackElo "2442"]
[PlyCount "66"]
[TimeControl "60"]

1. d4 {[%emt 0:0:0]} d5 {[%emt 0:0:0]} 2. c4 {[%emt 0:0:0]} c6 {[%emt 0:0:0]} 3. Nc3 {[%emt 0:0:0]} Nf6 {[%emt 0:0:0]} 4. e3 {[%emt 0:0:5]} e6 {[%emt 0:0:0]} 5. Nf3 {[%emt 0:0:24]} Nbd7 {[%emt 0:0:0]} 6. Bd3 {[%emt 0:1:5]} dxc4 {[%emt 0:0:0]} 7. Bxc4 {[%emt 0:0:6]} b5 {[%emt 0:0:0]} 8. Bd3 {[%emt 0:0:4]} Bd6 {[%emt 0:0:0]} 9. O-O {[%emt 0:1:29]} O-O {[%emt 0:0:0]} 10. Qc2 {[%emt 0:0:35]} Bb7 {[%emt 0:0:0]} 11. e4 {[%emt 0:0:7]} e5 {[%emt 0:0:0]} 12. dxe5 {[%emt 0:0:3]} Nxe5 {[%emt 0:0:0]} 13. Nxe5 {[%emt 0:0:7]} Bxe5 {[%emt 0:0:0]} 14. h3 {[%emt 0:0:7]} Re8 {[%emt 0:0:0]} 15. Be3 {[%emt 0:1:10]} a6 {[%emt 0:0:0]} 16. Rad1 {[%emt 0:10:8]} Qe7 {[%emt 0:0:0]} 17. Ne2 {[%emt 0:1:47]} c5 {[%emt 0:0:0]} 18. Bxc5 {[%emt 0:23:49]} Qc7 {[%emt 0:0:0]} 19. Kh1 {[%emt 0:28:56]} Bxb2 {[%emt 0:4:34]} 20. Qxb2 {[%emt 0:3:45]} Qxc5 {[%emt 0:0:5]} 21. f3 {[%emt 0:10:50]} Rad8 {[%emt 0:2:9]} 22. Bc2 {[%emt 0:1:50]} Rxd1 {[%emt 0:30:3]} 23. Rxd1 {[%emt 0:3:36]} Qf2 {[%emt 0:0:6]} 24. e5 {[%emt 0:8:22]} Bxf3 {[%emt 0:6:19]} 25. gxf3 {[%emt 0:0:5]} Qxf3+ {[%emt 0:0:6]} 26. Kg1 {[%emt 0:0:4]} Qe3+ {[%emt 0:0:16]} 27. Kf1 {[%emt 0:0:1]} Qxh3+ {[%emt 0:0:47]} 28. Ke1 {[%emt 0:1:12]} Qh4+ {[%emt 0:1:54]} 29. Kd2 {[%emt 0:1:0]} Qg5+ {[%emt 0:0:34]} 30. Ke1 {[%emt 0:0:38]} Ng4 {[%emt 0:1:27]} 31. Rd5 {[%emt 0:2:44]} Qh4+ {[%emt 0:1:7]} 32. Kd2 {[%emt 0:0:1]} Qh6+ {[%emt 0:0:10]} 33. Kc3 {[%emt 0:0:5]} Qc6+ {[%emt 0:0:12]} 0-1

[Event "56th Biel Festival MTO 2023"]
[White "Rohith Krishna S"]
[Black "Kamber,Bruno"]
[Site "Biel"]
[Round "5.24"]
[Annotator "RC"]
[Result "1/2-1/2"]
[Date "2023.07.21"]
[WhiteElo "2429"]
[BlackElo "2214"]
[PlyCount "117"]
[TimeControl "60"]

1. d4 {[%emt 0:0:0]} Nf6 {[%emt 0:0:0]} 2. c4 {[%emt 0:0:0]} c5 {[%emt 0:0:0]} 3. d5 {[%emt 0:0:0]} b5 {[%emt 0:0:0]} 4. cxb5 {[%emt 0:0:0]} a6 {[%emt 0:0:0]} 5. bxa6 {[%emt 0:0:0]} g6 {[%emt 0:0:0]} 6. Nc3 {[%emt 0:0:0]} Bg7 {[%emt 0:0:0]} 7. g3 {[%emt 0:0:0]} O-O {[%emt 0:0:0]} 8. Bg2 {[%emt 0:0:0]} Bxa6 {[%emt 0:0:0]} 9. Nf3 {[%emt 0:0:0]} d6 {[%emt 0:0:0]} 10. O-O {[%emt 0:0:0]} Qa5 {[%emt 0:0:0]} 11. Qc2 {[%emt 0:23:16]} Nbd7 {[%emt 0:0:0]} 12. h3 {[%emt 0:0:59]} Rfb8 {[%emt 0:2:1]} 13. Rd1 {[%emt 0:0:13]} Ne8 {[%emt 0:9:59]} 14. Bd2 {[%emt 0:6:10]} Nc7 {[%emt 0:1:32]} 15. Be1 {[%emt 0:6:50]} Nb5 {[%emt 0:9:12]} 16. Ne4 {[%emt 0:6:53]} Qb6 {[%emt 0:7:1]} 17. e3 {[%emt 0:7:40]} Qb7 {[%emt 0:4:16]} 18. Rac1 {[%emt 0:15:55]} Nb6 {[%emt 0:7:14]} 19. a4 {[%emt 0:0:54]} Na7 {[%emt 0:1:23]} 20. b3 {[%emt 0:4:29]} Nd7 {[%emt 0:7:54]} 21. Rb1 {[%emt 0:0:48]} Rc8 {[%emt 0:1:31]} 22. Nfd2 {[%emt 0:3:48]} Be2 {[%emt 0:1:0]} 23. Rdc1 {[%emt 0:0:4]} Ne5 {[%emt 0:0:14]} 24. f4 {[%emt 0:5:32]} Nd3 {[%emt 0:2:49]} 25. Nc4 {[%emt 0:2:13]} Nxc1 {[%emt 0:0:26]} 26. Rxc1 {[%emt 0:2:17]} Bxc4 {[%emt 0:0:25]} 27. Qxc4 {[%emt 0:1:39]} Rcb8 {[%emt 0:0:42]} 28. Nxc5 {[%emt 0:1:46]} dxc5 {[%emt 0:4:7]} 29. d6 {[%emt 0:0:33]} Qd7 {[%emt 0:0:25]} 30. dxe7 {[%emt 0:0:0]} Qxe7 {[%emt 0:0:26]} 31. Bxa8 {[%emt 0:8:55]} Rxa8 {[%emt 0:3:24]} 32. Qxc5 {[%emt 0:0:3]} Qe6 {[%emt 0:4:6]} 33. Rc4 {[%emt 0:0:6]} Qd7 {[%emt 0:7:25]} 34. Kf2 {[%emt 0:2:40]} h5 {[%emt 0:9:38]} 35. Qc7 {[%emt 0:0:53]} Qxh3 {[%emt 0:7:7]} 36. Qb7 {[%emt 0:0:34]} Qh2+ {[%emt 0:0:5]} 37. Kf1 {[%emt 0:0:15]} Rd8 {[%emt 0:1:3]} 38. Qxa7 {[%emt 0:0:13]} Rd1 {[%emt 0:0:28]} 39. Qa8+ {[%emt 0:1:47]} Kh7 {[%emt 0:1:20]} 40. Qf3 {[%emt 0:0:4]} Rb1 {[%emt 0:1:0]} 41. f5 {[%emt 0:1:57]} Qd2 {[%emt 0:0:0]} 42. fxg6+ {[%emt 0:0:52]} fxg6 {[%emt 0:0:0]} 43. Qf2 {[%emt 0:3:48]} Qd3+ {[%emt 0:0:0]} 44. Qe2 {[%emt 0:4:18]} Qf5+ {[%emt 0:6:42]} 45. Qf2 {[%emt 0:1:6]} Qd5 {[%emt 0:1:59]} 46. Rc2 {[%emt 0:3:28]} Qxb3 {[%emt 0:4:7]} 47. Re2 {[%emt 0:1:14]} Qxa4 {[%emt 0:5:2]} 48. Kg2 {[%emt 0:0:9]} Qd1 {[%emt 0:1:12]} 49. Qf3 {[%emt 0:1:34]} Rb5 {[%emt 0:4:2]} 50. e4 {[%emt 0:0:40]} Rb3 {[%emt 0:0:28]} 51. Re3 {[%emt 0:0:27]} Rb2+ {[%emt 0:1:33]} 52. Bf2 {[%emt 0:0:3]} Qxf3+ {[%emt 0:6:43]} 53. Rxf3 {[%emt 0:0:7]} Bd4 {[%emt 0:0:36]} 54. Kf1 {[%emt 0:0:16]} Bxf2 {[%emt 0:2:1]} 55. Rxf2 {[%emt 0:0:4]} Rb3 {[%emt 0:0:39]} 56. Kg2 {[%emt 0:0:32]} Re3 {[%emt 0:0:17]} 57. Rf7+ {[%emt 0:0:5]} Kg8 {[%emt 0:0:14]} 58. Re7 {[%emt 0:0:4]} Kf8 {[%emt 0:0:5]} 59. Re5 {[%emt 0:0:5]} 1/2-1/2

[Event "56th Biel Festival MTO 2023"]
[White "Huang,Qian"]
[Black "Ouellet,Maili-Jade"]
[Site "Biel"]
[Round "5.25"]
[Annotator "RC"]
[Result "1/2-1/2"]
[Date "2023.07.21"]
[WhiteElo "2422"]
[BlackElo "2201"]
[PlyCount "83"]
[TimeControl "60"]

1. c4 {[%emt 0:0:0]} e6 {[%emt 0:0:0]} 2. g3 {[%emt 0:0:0]} d5 {[%emt 0:0:0]} 3. Bg2 {[%emt 0:0:0]} Nf6 {[%emt 0:0:0]} 4. Nf3 {[%emt 0:0:0]} d4 {[%emt 0:0:0]} 5. d3 {[%emt 0:0:0]} c5 {[%emt 0:0:0]} 6. e4 {[%emt 0:0:0]} Nc6 {[%emt 0:0:0]} 7. e5 {[%emt 0:0:0]} Nd7 {[%emt 0:0:0]} 8. Qe2 {[%emt 0:0:0]} Qc7 {[%emt 0:0:0]} 9. Bf4 {[%emt 0:0:0]} Be7 {[%emt 0:0:49]} 10. h4 {[%emt 0:0:0]} h6 {[%emt 0:1:22]} 11. Nbd2 {[%emt 0:0:0]} b6 {[%emt 0:2:22]} 12. h5 {[%emt 0:5:39]} Bb7 {[%emt 0:1:30]} 13. O-O {[%emt 0:0:32]} O-O-O {[%emt 0:6:1]} 14. Rfe1 {[%emt 0:1:38]} g5 {[%emt 0:9:14]} 15. hxg6 {[%emt 0:0:8]} fxg6 {[%emt 0:0:4]} 16. g4 {[%emt 0:0:43]} Rdf8 {[%emt 0:23:29]} 17. Bg3 {[%emt 0:15:48]} Rf7 {[%emt 0:4:20]} 18. Ne4 {[%emt 0:9:41]} Rhf8 {[%emt 0:1:14]} 19. Nh4 {[%emt 0:8:16]} Ndxe5 {[%emt 0:24:37]} 20. Nxg6 {[%emt 0:3:22]} Rg8 {[%emt 0:2:21]} 21. Nxe5 {[%emt 0:8:12]} Nxe5 {[%emt 0:0:4]} 22. Nd2 {[%emt 0:0:26]} Bxg2 {[%emt 0:2:12]} 23. Qxe5 {[%emt 0:2:23]} Qxe5 {[%emt 0:0:51]} 24. Rxe5 {[%emt 0:0:5]} Bc6 {[%emt 0:2:46]} 25. Rxe6 {[%emt 0:0:53]} Bd7 {[%emt 0:0:13]} 26. Rxh6 {[%emt 0:2:52]} Rxg4 {[%emt 0:2:32]} 27. Re1 {[%emt 0:3:56]} Kb7 {[%emt 0:1:3]} 28. Ne4 {[%emt 0:9:58]} Bc6 {[%emt 0:2:17]} 29. Kg2 {[%emt 0:1:37]} Rgg7 {[%emt 0:1:57]} 30. Rh8 {[%emt 0:4:24]} Bd6 {[%emt 0:1:20]} 31. Rh6 {[%emt 0:7:39]} Bc7 {[%emt 0:1:4]} 32. a3 {[%emt 0:5:43]} a5 {[%emt 0:0:4]} 33. Rh3 {[%emt 0:8:54]} Bd7 {[%emt 0:1:47]} 34. Rh4 {[%emt 0:0:12]} Bc6 {[%emt 0:0:56]} 35. Reh1 {[%emt 0:2:55]} a4 {[%emt 0:2:53]} 36. Re1 {[%emt 0:1:43]} Bxe4+ {[%emt 0:3:1]} 37. Rhxe4 {[%emt 0:0:36]} Rxf2+ {[%emt 0:0:51]} 38. Kxf2 {[%emt 0:0:3]} Bxg3+ {[%emt 0:0:6]} 39. Kf3 {[%emt 0:0:36]} Bxe1 {[%emt 0:0:8]} 40. Rxe1 {[%emt 0:0:2]} Rf7+ {[%emt 0:0:12]} 41. Kg3 {[%emt 0:30:3]} Rg7+ {[%emt 0:30:34]} 42. Kf3 {[%emt 0:0:5]} 1/2-1/2

[Event "56th Biel Festival MTO 2023"]
[White "Frey,Fabian"]
[Black "Morawietz,Dieter"]
[Site "Biel"]
[Round "5.26"]
[Annotator "RC"]
[Result "1-0"]
[Date "2023.07.21"]
[WhiteElo "2230"]
[BlackElo "2396"]
[PlyCount "39"]
[TimeControl "60"]

1. e4 {[%emt 0:0:0]} c5 {[%emt 0:0:0]} 2. Nf3 {[%emt 0:0:0]} e6 {[%emt 0:0:0]} 3. d4 {[%emt 0:0:0]} cxd4 {[%emt 0:0:0]} 4. Nxd4 {[%emt 0:0:0]} Nf6 {[%emt 0:0:0]} 5. Nc3 {[%emt 0:0:0]} d6 {[%emt 0:0:0]} 6. g4 {[%emt 0:0:0]} e5 {[%emt 0:0:0]} 7. Nf5 {[%emt 0:0:0]} Nc6 {[%emt 0:0:0]} 8. Bg5 {[%emt 0:0:30]} h6 {[%emt 0:0:0]} 9. Bxf6 {[%emt 0:6:3]} Qxf6 {[%emt 0:0:0]} 10. Nd5 {[%emt 0:1:23]} Qd8 {[%emt 0:0:0]} 11. c3 {[%emt 0:1:3]} g6 {[%emt 0:0:0]} 12. Nfe3 {[%emt 0:1:22]} Be6 {[%emt 0:0:0]} 13. Bc4 {[%emt 0:7:16]} Be7 {[%emt 0:6:20]} 14. Qf3 {[%emt 0:10:49]} Bg5 {[%emt 0:7:46]} 15. O-O-O {[%emt 0:4:0]} Rc8 {[%emt 0:1:56]} 16. Kb1 {[%emt 0:1:25]} h5 {[%emt 0:22:56]} 17. gxh5 {[%emt 0:8:3]} Rxh5 {[%emt 0:0:9]} 18. Nf5 {[%emt 0:8:35]} Kf8 {[%emt 0:13:1]} 19. Nde3 {[%emt 0:6:29]} Qf6 {[%emt 0:7:19]} 20. Ng4 {[%emt 0:6:43]} 1-0

[Event "56th Biel Festival MTO 2023"]
[White "Costello,Alexander"]
[Black "Seul,Georg"]
[Site "Biel"]
[Round "5.27"]
[Annotator "RC"]
[Result "1/2-1/2"]
[Date "2023.07.21"]
[WhiteElo "2224"]
[BlackElo "2376"]
[PlyCount "51"]
[TimeControl "60"]

1. e4 {[%emt 0:0:0]} c6 {[%emt 0:0:0]} 2. d4 {[%emt 0:0:0]} d5 {[%emt 0:0:0]} 3. e5 {[%emt 0:0:0]} c5 {[%emt 0:0:0]} 4. dxc5 {[%emt 0:0:0]} e6 {[%emt 0:0:0]} 5. Nf3 {[%emt 0:0:0]} Bxc5 {[%emt 0:0:0]} 6. Bd3 {[%emt 0:0:0]} Ne7 {[%emt 0:0:0]} 7. O-O {[%emt 0:0:0]} Ng6 {[%emt 0:0:0]} 8. a3 {[%emt 0:0:0]} Be7 {[%emt 0:0:0]} 9. Re1 {[%emt 0:3:41]} Nc6 {[%emt 0:0:0]} 10. b4 {[%emt 0:2:18]} f6 {[%emt 0:0:0]} 11. Bxg6+ {[%emt 0:4:30]} hxg6 {[%emt 0:0:0]} 12. Qd3 {[%emt 0:0:4]} O-O {[%emt 0:0:0]} 13. Bb2 {[%emt 0:14:28]} g5 {[%emt 0:0:0]} 14. h3 {[%emt 0:4:10]} a5 {[%emt 0:0:0]} 15. bxa5 {[%emt 0:10:32]} Rxa5 {[%emt 0:17:47]} 16. Nbd2 {[%emt 0:3:49]} Ra4 {[%emt 0:35:4]} 17. c4 {[%emt 0:20:22]} dxc4 {[%emt 0:19:6]} 18. Qc2 {[%emt 0:0:52]} b5 {[%emt 0:0:19]} 19. exf6 {[%emt 0:0:48]} Bxf6 {[%emt 0:0:9]} 20. Ne4 {[%emt 0:0:53]} Qd3 {[%emt 0:2:31]} 21. Qc1 {[%emt 0:5:13]} c3 {[%emt 0:3:27]} 22. Nxf6+ {[%emt 0:4:37]} gxf6 {[%emt 0:0:29]} 23. Qxc3 {[%emt 0:3:40]} Qxc3 {[%emt 0:0:24]} 24. Bxc3 {[%emt 0:0:1]} e5 {[%emt 0:3:16]} 25. Reb1 {[%emt 0:1:33]} Ba6 {[%emt 0:1:20]} 26. Nd2 {[%emt 0:3:36]} 1/2-1/2

[Event "56th Biel Festival MTO 2023"]
[White "Eidelman,Gabriel"]
[Black "Haimovich,Tal"]
[Site "Biel"]
[Round "5.28"]
[Annotator "RC"]
[Result "1-0"]
[Date "2023.07.21"]
[WhiteElo "2204"]
[BlackElo "2374"]
[PlyCount "153"]
[TimeControl "60"]

1. d4 {[%emt 0:0:0]} Nf6 {[%emt 0:0:0]} 2. c4 {[%emt 0:0:0]} e6 {[%emt 0:0:0]} 3. Nc3 {[%emt 0:0:0]} Bb4 {[%emt 0:0:0]} 4. Qc2 {[%emt 0:0:0]} d5 {[%emt 0:0:0]} 5. cxd5 {[%emt 0:0:0]} exd5 {[%emt 0:0:0]} 6. Bg5 {[%emt 0:0:0]} h6 {[%emt 0:0:0]} 7. Bh4 {[%emt 0:0:0]} c5 {[%emt 0:0:0]} 8. dxc5 {[%emt 0:0:0]} O-O {[%emt 0:0:0]} 9. e3 {[%emt 0:0:0]} Be6 {[%emt 0:0:0]} 10. Nf3 {[%emt 0:0:0]} Nbd7 {[%emt 0:0:0]} 11. Nd4 {[%emt 0:0:0]} Bxc5 {[%emt 0:9:46]} 12. Bd3 {[%emt 0:0:0]} Rc8 {[%emt 0:10:54]} 13. O-O {[%emt 0:7:55]} Ne5 {[%emt 0:4:16]} 14. Rad1 {[%emt 0:25:48]} Bb4 {[%emt 0:17:31]} 15. Nde2 {[%emt 0:3:4]} Be7 {[%emt 0:1:52]} 16. Qb1 {[%emt 0:15:27]} Qb6 {[%emt 0:4:13]} 17. Bc2 {[%emt 0:7:50]} Rfd8 {[%emt 0:5:52]} 18. Bb3 {[%emt 0:1:58]} Nc4 {[%emt 0:5:15]} 19. Nf4 {[%emt 0:11:6]} Qa5 {[%emt 0:4:9]} 20. Bxc4 {[%emt 0:7:40]} Rxc4 {[%emt 0:5:40]} 21. Nce2 {[%emt 0:1:38]} Bg4 {[%emt 0:4:37]} 22. f3 {[%emt 0:4:49]} Bc8 {[%emt 0:0:59]} 23. Nd4 {[%emt 0:2:26]} Qb6 {[%emt 0:3:28]} 24. Nfe2 {[%emt 0:2:23]} Re8 {[%emt 0:2:3]} 25. Bf2 {[%emt 0:1:30]} Bd7 {[%emt 0:6:42]} 26. b3 {[%emt 0:5:19]} Rcc8 {[%emt 0:0:49]} 27. Qd3 {[%emt 0:2:15]} Qa5 {[%emt 0:4:13]} 28. a4 {[%emt 0:0:47]} a6 {[%emt 0:3:31]} 29. Ra1 {[%emt 0:0:11]} Bd6 {[%emt 0:3:7]} 30. Rfc1 {[%emt 0:1:14]} Qb6 {[%emt 0:3:5]} 31. Rxc8 {[%emt 0:1:24]} Rxc8 {[%emt 0:0:12]} 32. g3 {[%emt 0:0:30]} Be5 {[%emt 0:0:48]} 33. Kg2 {[%emt 0:0:33]} Qd8 {[%emt 0:1:33]} 34. Rd1 {[%emt 0:0:33]} Qe7 {[%emt 0:0:46]} 35. Be1 {[%emt 0:0:47]} Bd6 {[%emt 0:1:0]} 36. Rc1 {[%emt 0:0:44]} Rxc1 {[%emt 0:0:38]} 37. Nxc1 {[%emt 0:0:5]} Qe5 {[%emt 0:0:53]} 38. Nce2 {[%emt 0:0:52]} Qh5 {[%emt 0:0:19]} 39. Nf4 {[%emt 0:0:30]} Bxf4 {[%emt 0:0:55]} 40. exf4 {[%emt 0:0:37]} Qh3+ {[%emt 0:0:40]} 41. Kg1 {[%emt 0:0:0]} h5 {[%emt 0:0:0]} 42. Qe2 {[%emt 0:0:0]} Bc8 {[%emt 0:0:0]} 43. Bd2 {[%emt 0:1:13]} Qd7 {[%emt 0:0:0]} 44. Qe5 {[%emt 0:1:8]} b6 {[%emt 0:3:15]} 45. Qb8 {[%emt 0:8:59]} Qb7 {[%emt 0:1:38]} 46. Qd6 {[%emt 0:1:8]} Bd7 {[%emt 0:3:44]} 47. Kf2 {[%emt 0:8:54]} a5 {[%emt 0:0:32]} 48. Be3 {[%emt 0:4:38]} Be8 {[%emt 0:16:22]} 49. Nf5 {[%emt 0:5:41]} Qd7 {[%emt 0:4:54]} 50. Qxd7 {[%emt 0:0:8]} Bxd7 {[%emt 0:0:16]} 51. Nd6 {[%emt 0:0:33]} Be6 {[%emt 0:4:0]} 52. Bxb6 {[%emt 0:1:24]} d4 {[%emt 0:0:40]} 53. Nc4 {[%emt 0:0:42]} d3 {[%emt 0:0:13]} 54. Bxa5 {[%emt 0:2:18]} Nd5 {[%emt 0:1:3]} 55. Bd2 {[%emt 0:0:34]} Kf8 {[%emt 0:0:6]} 56. a5 {[%emt 0:0:35]} Ke7 {[%emt 0:0:38]} 57. Ne5 {[%emt 0:0:29]} Kd6 {[%emt 0:0:24]} 58. Nxd3 {[%emt 0:0:31]} Kc6 {[%emt 0:0:13]} 59. b4 {[%emt 0:0:35]} Kb5 {[%emt 0:0:8]} 60. Ke2 {[%emt 0:0:29]} f6 {[%emt 0:0:39]} 61. Nc5 {[%emt 0:0:0]} Bc8 {[%emt 0:0:0]} 62. Ne4 {[%emt 0:0:0]} Ba6 {[%emt 0:0:0]} 63. Nd6+ {[%emt 0:0:0]} Kc6+ {[%emt 0:0:0]} 64. b5+ {[%emt 0:0:0]} Bxb5+ {[%emt 0:0:0]} 65. Nxb5 {[%emt 0:0:0]} Kxb5 {[%emt 0:0:0]} 66. Kd3 {[%emt 0:0:0]} Nc7 {[%emt 0:0:0]} 67. Ke4 {[%emt 0:0:0]} Ne6 {[%emt 0:0:0]} 68. Kd5 {[%emt 0:0:0]} Nc5 {[%emt 0:0:0]} 69. Kd6 {[%emt 0:0:0]} Nb3 {[%emt 0:0:0]} 70. Bc3 {[%emt 0:0:0]} Nc1 {[%emt 0:0:0]} 71. g4 {[%emt 0:5:11]} Ne2 {[%emt 0:0:0]} 72. Bd2 {[%emt 0:0:15]} Nd4 {[%emt 0:0:0]} 73. gxh5 {[%emt 0:0:38]} Nxf3 {[%emt 0:0:0]} 74. Bc3 {[%emt 0:0:23]} Nh4 {[%emt 0:0:0]} 75. Ke6 {[%emt 0:0:28]} Ng2 {[%emt 0:1:16]} 76. Bd2 {[%emt 0:0:7]} Nh4 {[%emt 0:4:20]} 77. Kf7 {[%emt 0:0:12]} 1-0